bitfinex/quotes_SOLUSD_20250118
["timestamp","ask_amount","ask_price","bid_price","bid_amount"]
[1737217350318,1283.98470575,254.29,253.92,19.33991634]
[1737217350319,31.35012404,254.23,254.03,0.58992323]
[1737217350495,1283.98470575,254.29,254.19,31.35012404]
[1737217350896,1283.98470575,254.29,254.21,31.35012404]
[1737217351218,31.35012404,254.26,254.14,31.35012404]
[1737217351398,31.35012404,254.26,254.15,0.59004076]
[1737217351599,1315.33482979,254.29,254.17,31.35012404]
[1737217351799,31.35012404,254.27,254.15,31.35012404]
[1737217352099,1283.98470575,254.29,254.03,0.59003954]
[1737217352100,31.35012404,254.23,254.11,31.35012404]
[1737217352295,31.35012404,254.21,254.09,31.35012404]
[1737217352499,1283.98470575,254.29,254.11,31.35012404]
[1737217352825,31.35012404,254.23,254.12,0.59014235]
[1737217353115,31.35012404,254.25,254.13,31.35012404]
[1737217353318,31.35012404,254.22,254.11,31.35012404]
[1737217353512,1283.98470575,254.29,254.03,0.59011222]
[1737217353513,31.35012404,254.2,254.09,31.35012404]
[1737217353828,31.35012404,254.2,254.1,0.59019469]
[1737217354004,31.35012404,254.12,254.01,31.35012404]
[1737217354211,31.35012404,254.14,254.03,31.35012404]
[1737217354516,31.35012404,254.14,254.01,31.35012404]
[1737217354725,31.35012404,254.18,254.05,31.35012404]
[1737217354904,31.35012404,254.18,254.06,0.59023555]
[1737217355218,20.3893,254.27,254.18,20.0]
[1737217355409,20.3893,254.27,254.17,31.35012404]
[1737217355410,20.3893,254.27,254.21,31.35012404]
[1737217355611,1283.98470575,254.29,254.02,31.35012404]
[1737217355612,31.35012404,254.28,254.15,31.35012404]
[1737217355818,31.35012404,254.24,254.13,31.35012404]
[1737217356021,31.35012404,254.24,254.14,0.59006316]
[1737217356211,31.35012404,254.25,254.13,31.35012404]
[1737217356520,31.35012404,254.22,254.14,0.59018947]
[1737217356717,31.35012404,254.22,254.11,0.59013903]
[1737217357019,31.35012404,254.26,254.14,31.35012404]
[1737217357214,31.35012404,254.17,254.06,0.59007332]
[1737217357410,31.35012404,254.1,253.98,31.35012404]
[1737217357614,31.35012404,254.28,254.0,31.35012404]
[1737217357615,31.35012404,254.12,254.0,31.35012404]
[1737217358115,31.35012404,254.22,254.11,31.35012404]
[1737217358311,1283.98470575,254.29,254.16,31.35012404]
[1737217358510,1283.98470575,254.29,254.1,31.35012404]
[1737217358511,31.35012404,254.22,254.1,31.35012404]
[1737217358715,1283.98470575,254.29,254.17,31.35012404]
[1737217358926,1283.98470575,254.29,253.97,0.62003604]
[1737217359134,31.35012404,254.24,254.13,31.35012404]
[1737217359332,31.35012404,254.22,254.1,31.35012404]
[1737217359623,31.35012404,254.26,254.14,31.35012404]
[1737217359829,31.35012404,254.24,254.12,31.35012404]
[1737217360030,1283.98470575,254.29,254.22,31.35012404]
[1737217360204,1283.98470575,254.29,254.28,31.35012404]
[1737217360405,1128.76223442,254.29,254.28,31.35012404]
[1737217360627,1076.47197748,254.29,254.28,31.35012404]
[1737217360823,1069.35197748,254.29,254.28,36.3110594]
[1737217361129,1050.01749169,254.29,254.28,86.47713208]
[1737217361330,939.50051471,254.29,254.28,122.19858466]
[1737217361635,874.41350511,254.29,254.28,134.63770194]
[1737217361827,837.64589031,254.29,254.28,122.91770194]
[1737217362030,792.53589031,254.29,254.28,122.91770194]
[1737217362229,716.94129113,254.29,254.28,122.91770194]
[1737217362530,666.94723316,254.29,254.28,98.18560537]
[1737217362707,659.82723316,254.29,254.28,63.41936536]
[1737217362912,653.82423316,254.29,254.28,62.70024808]
[1737217363327,521.13884438,254.29,254.28,62.70024808]
[1737217363528,521.13884438,254.29,254.28,94.05037212]
[1737217363718,490.4756937,254.29,254.28,62.70024808]
[1737217364615,490.4756937,254.29,254.28,31.35012404]
[1737217364817,490.4756937,254.29,254.28,62.70024808]
[1737217365014,481.12508536,254.29,254.28,86.47713208]
[1737217365231,440.11929392,254.29,254.28,86.47713208]
[1737217365734,440.11929392,254.29,254.28,86.77242405]
[1737217366040,418.75929392,254.29,254.28,87.49154133]
[1737217366336,234.53892284,254.29,254.28,110.57286947]
[1737217366637,31.35012404,254.72,254.3,11.72]
[1737217366824,31.35012404,254.74,254.63,31.35012404]
[1737217367026,0.7361474,254.73,254.63,31.35012404]
[1737217367239,7.626,254.86,254.54,31.35012404]
[1737217367240,0.85710591,254.85,254.72,31.35012404]
[1737217367429,0.1209408,254.84,254.75,31.35012404]
[1737217367610,0.73575652,254.95,254.54,31.35012404]
[1737217367611,0.73575652,254.95,254.73,31.35012404]
[1737217367817,31.35012404,254.91,254.79,31.35012404]
[1737217368017,31.35012404,254.86,254.54,31.35012404]
[1737217368217,31.35012404,254.86,254.76,31.35012404]
[1737217368416,0.73579183,254.85,254.74,31.35012404]
[1737217368620,31.35012404,254.84,254.72,31.35012404]
[1737217368831,31.35012404,254.9,254.8,31.35012404]
[1737217369045,31.35012404,254.94,254.85,20.0]
[1737217369235,31.35012404,254.94,254.67,43.07012404]
[1737217369236,31.35012404,254.96,254.87,20.0]
[1737217369434,31.35012404,254.94,254.82,31.35012404]
[1737217369623,31.35012404,254.92,254.82,31.35012404]
[1737217369849,31.35012404,254.96,254.87,20.0]
[1737217370036,13.0875,254.98,254.87,20.0]
[1737217370037,13.0875,254.98,254.91,31.35012404]
[1737217370232,0.73543186,254.97,254.85,31.35012404]
[1737217370444,31.35012404,255.0,254.89,31.35012404]
[1737217370631,0.73541439,255.12,254.94,20.0]
[1737217370836,0.73534304,255.12,255.01,20.0]
[1737217371144,31.35012404,255.11,254.99,31.35012404]
[1737217371316,0.73514436,255.1,255.0,31.35012404]
[1737217371516,0.73514601,255.11,255.0,31.35012404]
[1737217371822,32.08526096,255.12,255.0,31.35012404]
[1737217372027,31.35012404,255.1,254.98,31.35012404]
[1737217372241,0.73519558,255.09,254.98,31.35012404]
[1737217372438,31.35012404,255.04,254.92,31.35012404]
[1737217372638,31.35012404,255.02,254.91,31.35012404]
[1737217372947,31.35012404,255.04,254.93,31.35012404]
[1737217373236,0.73542468,255.12,255.02,31.35012404]
[1737217373627,31.35012404,255.08,254.96,31.35012404]
[1737217373824,31.35012404,255.12,254.93,31.35012404]
[1737217374029,12.0572,255.13,255.04,20.0]
[1737217374223,31.35012404,255.07,254.48,3.906]
[1737217374420,31.35012404,255.07,254.8,31.35012404]
[1737217374615,0.73518175,255.06,254.96,31.35012404]
[1737217374817,31.35012404,255.04,254.92,31.35012404]
[1737217375131,32.08548971,255.12,255.01,31.35012404]
[1737217375326,31.35012404,255.08,254.74,11.72]
[1737217375636,31.35012404,255.06,254.95,31.35012404]
[1737217375839,31.35012404,255.0,254.88,31.35012404]
[1737217376022,31.35012404,254.98,254.88,31.35012404]
[1737217376220,23.776884,254.93,254.82,31.35012404]
[1737217376424,31.35012404,254.86,254.75,31.35012404]
[1737217376639,31.35012404,254.76,254.65,31.35012404]
[1737217376937,12.0572,254.84,254.35,42.36]
[1737217376938,31.35012404,254.68,254.36,11.72]
[1737217377145,31.35012404,254.58,254.48,31.35012404]
[1737217377446,12.0572,254.55,254.29,500.0]
[1737217377625,0.73688422,254.54,254.29,500.0]
[1737217377826,0.73672093,254.54,254.29,500.0]
[1737217378037,12.0572,254.55,254.29,500.0]
[1737217378245,12.0572,254.55,254.3,0.71906072]
[1737217378540,12.0572,254.55,254.48,31.35012404]
[1737217378837,0.7366625,254.65,254.41,31.35012404]
[1737217378838,32.08673179,254.65,254.54,31.35012404]
[1737217379030,39.65602404,254.66,254.56,31.35012404]
[1737217379343,12.0572,254.83,254.62,31.35012404]
[1737217379344,0.73638263,254.65,254.62,31.35012404]
[1737217379642,31.35012404,254.78,254.64,31.35012404]
[1737217379820,31.35012404,254.74,254.62,31.35012404]
[1737217380027,3.9244,254.82,254.41,31.35012404]
[1737217380028,31.35012404,254.7,254.58,31.35012404]
[1737217380222,0.73639222,254.69,254.58,31.35012404]
[1737217380536,0.73639222,254.69,254.41,31.35012404]
[1737217380537,0.73639222,254.69,254.62,31.35012404]
[1737217380734,31.35012404,254.66,254.53,31.35012404]
[1737217380941,0.73654086,254.65,254.55,31.35012404]
[1737217381524,0.7365311,254.66,254.63,31.35012404]
[1737217381746,12.0572,254.69,254.54,31.35012404]
[1737217381747,0.73639342,254.68,254.61,31.35012404]
[1737217382042,23.776884,254.67,254.57,31.35012404]
[1737217382229,31.35012404,254.61,254.5,31.35012404]
[1737217382551,0.7367683,254.6,254.5,31.35012404]
[1737217382844,31.35012404,254.51,254.29,500.0]
[1737217383050,31.35012404,254.47,254.37,31.35012404]
[1737217383225,23.776884,254.45,254.35,31.35012404]
[1737217383432,0.73720513,254.53,254.43,31.35012404]
[1737217383742,0.73677196,254.58,254.51,31.35012404]
[1737217383945,31.35012404,254.6,254.49,31.35012404]
[1737217384145,8.2259,254.63,254.58,31.35012404]
[1737217384323,0.73646453,254.79,254.45,20.0]
[1737217384520,0.73646453,254.79,254.73,31.35012404]
[1737217384720,13.2449,254.88,254.78,31.35012404]
[1737217385030,0.73582379,254.94,254.87,31.35012404]
[1737217385238,0.73582379,254.94,254.89,31.35012404]
[1737217385239,0.73555523,254.94,254.89,31.35012404]
[1737217385454,0.73568917,254.98,254.89,31.35012404]
[1737217385624,32.08581321,254.98,254.87,31.35012404]
[1737217385824,31.35012404,254.94,254.83,31.35012404]
[1737217386127,31.35012404,254.92,254.81,31.35012404]
[1737217386326,0.73588003,254.91,254.81,31.35012404]
[1737217386624,0.73588003,254.91,254.88,31.35012404]
[1737217386823,31.35012404,254.89,254.78,31.35012404]
[1737217387041,31.35012404,254.87,254.76,31.35012404]
[1737217387247,0.7359438,254.86,254.78,31.35012404]
[1737217387544,0.7359438,254.86,254.8,31.35012404]
[1737217387843,0.73587946,254.9,254.78,31.35012404]
[1737217388029,23.776884,254.89,254.74,31.35012404]
[1737217388229,32.08619786,254.88,254.78,31.35012404]
[1737217388448,23.776884,254.87,254.78,31.35012404]
[1737217388745,31.35012404,254.8,254.68,31.35012404]
[1737217389049,0.73609693,254.79,254.76,31.35012404]
[1737217389256,31.35012404,254.82,254.72,31.35012404]
[1737217389544,0.73615417,255.02,254.69,20.0]
[1737217389722,0.79828907,255.14,255.01,31.35012404]
[1737217389923,0.79828907,255.14,255.03,31.35012404]
[1737217389924,32.14841311,255.14,255.03,31.35012404]
[1737217390239,31.35012404,255.06,254.8,31.35012404]
[1737217390441,31.35012404,255.04,254.94,31.35012404]
[1737217390733,0.73546943,255.03,254.99,31.35012404]
[1737217390944,0.73538427,255.09,255.02,31.35012404]
[1737217391130,0.79826022,255.14,255.04,31.35012404]
[1737217391535,31.35012404,255.13,254.8,31.35012404]
[1737217391743,0.7353326,255.13,255.11,31.35012404]
[1737217392043,0.7353326,255.13,254.81,0.71762153]
[1737217392229,0.7353326,255.13,255.09,31.35012404]
[1737217392429,0.063,255.14,255.12,31.35012404]
[1737217392647,0.063,255.14,255.11,31.35012404]
[1737217393030,0.063,255.14,255.13,51.35012404]
[1737217394028,1.54790337,255.5,255.13,51.35012404]
[1737217394029,15.666214,255.49,255.17,31.79]
[1737217394228,31.35012404,255.44,255.18,0.71658101]
[1737217394544,0.73425279,255.43,255.41,31.35012404]
[1737217394741,0.7341042,255.52,255.22,196.62532384]
[1737217394937,0.7341042,255.52,255.03,8.2259]
[1737217395130,0.7341042,255.52,255.22,196.62532384]
[1737217395331,0.7341042,255.52,255.03,17.14916745]
[1737217395537,0.73429071,255.62,255.51,31.35012404]
[1737217395740,0.73429071,255.62,255.55,31.35012404]
[1737217395940,0.73391366,255.68,255.57,31.35012404]
[1737217396152,3.9112,255.67,255.32,31.35012404]
[1737217396351,0.73383934,255.66,255.62,31.35012404]
[1737217396551,0.73383934,255.66,255.6,31.35012404]
[1737217396747,31.35012404,255.62,255.5,31.35012404]
[1737217397055,0.73405154,255.61,255.52,31.35012404]
[1737217397242,32.08406924,255.64,255.52,31.35012404]
[1737217397749,32.08406924,255.64,254.97,21.21472186]
[1737217397750,3.9125,255.59,254.97,21.21472186]
[1737217398055,31.35012404,255.51,255.4,31.35012404]
[1737217398259,0.73430192,255.5,255.32,31.35012404]
[1737217398438,4.88235019,255.64,255.5,31.35012404]
[1737217398439,0.734101,255.63,255.5,31.35012404]
[1737217398756,0.734101,255.63,255.52,31.35012404]
[1737217399156,0.734101,255.63,255.58,31.35012404]
[1737217399359,0.734101,255.63,255.56,31.35012404]
[1737217399652,4.646001,255.63,255.5,31.35012404]
[1737217399839,0.734101,255.63,255.56,31.35012404]
[1737217400044,0.734101,255.63,255.6,23.01682404]
[1737217400339,0.734101,255.63,255.62,31.35012404]
[1737217400545,4.64351477,255.77,255.62,31.35012404]
[1737217400747,4.64351477,255.77,255.7,31.35012404]
[1737217400956,31.35012404,255.75,255.62,31.35012404]
[1737217401148,0.73369616,255.74,255.64,31.35012404]
[1737217401456,0.73369616,255.74,255.66,31.35012404]
[1737217401750,0.73369616,255.74,255.62,31.35012404]
[1737217401949,20.0,255.7,255.62,31.35012404]
[1737217402153,20.0,255.68,255.6,31.35012404]
[1737217402361,11.79,255.75,255.45,31.35012404]
[1737217402362,43.87399491,255.67,255.56,31.35012404]
[1737217402554,0.73387087,255.67,255.64,31.35012404]
[1737217402857,1.55292452,255.79,255.63,31.35012404]
[1737217403060,31.35012404,255.74,255.63,31.35012404]
[1737217403257,0.73375722,255.73,255.57,31.35012404]
[1737217403444,31.35012404,255.65,255.53,31.35012404]
[1737217403640,0.73396032,255.64,255.53,31.35012404]
[1737217403961,0.73396032,255.64,255.54,31.35012404]
[1737217404163,0.73396032,255.64,255.45,31.35012404]
[1737217404164,0.73396032,255.64,255.6,31.35012404]
[1737217404453,0.73370854,255.71,255.6,31.35012404]
[1737217404656,0.73370854,255.71,255.62,31.35012404]
[1737217404845,0.73370854,255.71,255.68,31.35012404]
[1737217405043,31.35012404,255.8,255.58,31.35012404]
[1737217405044,0.73341995,255.79,255.7,31.35012404]
[1737217405550,0.73341995,255.79,255.72,31.35012404]
[1737217405760,0.73341995,255.79,255.62,23.776884]
[1737217405940,0.79584662,255.89,255.78,31.35012404]
[1737217406135,31.41312404,255.89,255.79,31.35012404]
[1737217406460,31.35012404,255.87,255.77,31.35012404]
[1737217406763,0.73319727,255.86,255.83,31.35012404]
[1737217407053,0.79606946,255.89,255.83,31.35012404]
[1737217407261,0.73299973,255.88,255.85,31.35012404]
[1737217407438,0.063,255.89,255.83,31.35012404]
[1737217407756,31.35012404,255.88,255.76,31.35012404]
[1737217407960,0.73316201,255.87,255.8,31.35012404]
[1737217408156,0.79619346,255.89,255.84,31.35012404]
[1737217408361,0.063,255.89,255.84,31.35012404]
[1737217408761,0.063,255.89,255.86,31.35012404]
[1737217408943,0.063,255.89,255.84,31.35012404]
[1737217409540,31.41312404,255.89,255.61,7.6994]
[1737217409746,0.73315583,255.88,255.78,31.35012404]
[1737217409941,31.35012404,255.87,255.76,31.35012404]
[1737217410166,0.73313062,255.86,255.8,31.35012404]
[1737217410366,0.73313062,255.86,255.78,31.35012404]
[1737217410546,23.776884,255.85,255.76,31.35012404]
[1737217410741,0.73319926,255.84,255.78,31.35012404]
[1737217410948,0.73322648,255.86,255.78,31.35012404]
[1737217411156,0.73322648,255.86,255.76,31.35012404]
[1737217411157,31.35012404,255.85,255.76,31.35012404]
[1737217411475,31.35012404,255.79,255.68,31.35012404]
[1737217411669,0.73350681,255.78,255.72,31.35012404]
[1737217411968,0.73324245,255.82,255.76,31.35012404]
[1737217412159,31.35012404,255.79,255.49,12.7071]
[1737217412358,0.73357057,255.78,255.68,31.35012404]
[1737217412560,0.73357057,255.78,255.77,31.35012404]
[1737217412754,0.063,255.89,255.77,31.35012404]
[1737217412954,0.73273938,256.21,255.8,196.62532384]
[1737217413157,0.73228761,256.24,255.9,196.62532384]
[1737217413361,0.7318809,256.38,256.11,196.62532384]
[1737217413553,31.35012404,256.57,256.11,196.62532384]
[1737217413763,35.24822404,256.53,256.11,196.62532384]
[1737217414066,31.35012404,256.45,256.32,31.35012404]
[1737217414274,31.35012404,256.41,256.3,31.35012404]
[1737217414466,31.35012404,256.35,256.22,31.35012404]
[1737217414650,0.73188652,256.34,256.26,31.35012404]
[1737217414858,0.73184194,256.36,256.28,31.35012404]
[1737217415067,0.73184194,256.36,256.01,8.0324]
[1737217415268,0.73184194,256.36,256.07,31.35012404]
[1737217415269,4.63254194,256.36,256.07,31.35012404]
[1737217415457,31.35012404,256.31,256.19,31.35012404]
[1737217415664,0.73201276,256.3,255.84,12.9238]
[1737217415864,0.73187362,256.32,255.91,196.62532384]
[1737217416164,0.063,256.37,256.29,31.35012404]
[1737217416371,31.35012404,256.36,256.23,31.35012404]
[1737217416567,31.35012404,256.34,256.21,31.35012404]
[1737217416871,0.73191827,256.33,256.26,31.35012404]
[1737217417173,0.063,256.37,256.26,31.35012404]
[1737217417387,0.063,256.36,256.32,31.35012404]
[1737217417672,0.063,256.36,256.15,8.0324]
[1737217417972,0.79461652,256.36,256.26,31.35012404]
[1737217418175,0.79461652,256.36,256.28,31.35012404]
[1737217418488,0.063,256.36,256.28,31.35012404]
[1737217418708,0.79470373,256.36,256.15,8.0324]
[1737217418991,0.79470373,256.36,256.27,31.35012404]
[1737217419157,0.79470373,256.36,256.29,31.35012404]
[1737217419361,0.79470373,256.36,256.26,31.35012404]
[1737217419582,31.35012404,256.27,255.97,8.1755]
[1737217419763,31.35012404,256.22,256.11,31.35012404]
[1737217419955,31.35012404,256.14,255.97,8.1755]
[1737217420160,0.73244566,256.13,255.8,8.1755]
[1737217420379,11.79,256.33,255.8,8.1755]
[1737217420565,0.73247474,256.32,255.8,8.1755]
[1737217420764,11.79,256.31,255.63,8.1755]
[1737217420967,11.79,256.21,255.63,8.1755]
[1737217421181,31.35012404,255.98,255.89,31.35012404]
[1737217421385,0.73269417,255.97,255.89,31.35012404]
[1737217421586,0.73269417,255.97,255.83,31.35012404]
[1737217421587,31.35012404,255.94,255.83,31.35012404]
[1737217421789,0.73291102,255.93,255.85,31.35012404]
[1737217422074,0.73284083,255.95,255.85,31.35012404]
[1737217422294,0.73284083,255.95,255.71,31.35012404]
[1737217422295,0.73284083,255.95,255.87,31.35012404]
[1737217422463,31.35012404,255.94,255.83,31.35012404]
[1737217422664,31.35012404,255.84,255.73,31.35012404]
[1737217422986,31.35012404,255.84,255.63,8.1755]
[1737217422987,31.35012404,255.81,255.69,31.35012404]
[1737217423171,3.9071,255.94,255.46,0.03]
[1737217423172,31.35012404,255.73,255.62,31.35012404]
[1737217423371,0.73358733,255.72,255.46,8.2055]
[1737217423565,31.35012404,255.81,255.71,31.35012404]
[1737217423784,31.35012404,255.79,255.69,31.35012404]
[1737217423980,0.73336254,255.78,255.71,31.35012404]
[1737217424282,31.35012404,255.73,255.61,31.35012404]
[1737217424469,31.35012404,255.66,255.55,31.35012404]
[1737217424787,32.08393892,255.65,255.54,31.35012404]
[1737217425085,31.35012404,255.58,255.46,15.672521]
[1737217425264,31.35012404,255.54,255.46,0.03]
[1737217425472,31.35012404,255.49,255.46,0.03]
[1737217425673,31.35012404,255.58,255.46,0.03]
[1737217425674,0.7342545,255.48,255.46,0.03]
[1737217425988,0.7342481,255.5,255.17,196.62532384]
[1737217426175,0.73394823,255.73,255.49,31.35012404]
[1737217426491,0.73394823,255.73,255.64,31.35012404]
[1737217426697,32.08407227,255.73,255.62,31.35012404]
[1737217427067,0.73394823,255.73,255.47,8.1755]
[1737217427274,31.35012404,255.71,255.61,31.35012404]
[1737217427477,0.73353891,255.7,255.61,31.35012404]
[1737217427688,0.73353891,255.7,255.47,8.1755]
[1737217427689,0.73353891,255.7,255.64,31.35012404]
[1737217427993,0.73345187,255.76,255.68,31.35012404]
[1737217428174,11.79,256.02,255.58,31.35012404]
[1737217428175,0.73339051,255.91,255.79,7.5656]
[1737217428373,0.73271375,256.18,255.91,23.776884]
[1737217428591,51.35012404,256.26,256.17,31.35012404]
[1737217428592,0.73244489,256.25,256.17,31.35012404]
[1737217428790,0.063,256.36,256.24,31.35012404]
[1737217428990,15.622594,256.25,256.05,0.5853842]
[1737217429170,0.7323782,256.24,255.84,196.62532384]
[1737217429372,0.73259588,256.34,255.85,0.5860767]
[1737217429572,0.73259588,256.34,256.11,15.607149]
[1737217429785,0.71831219,256.33,255.82,20.0]
[1737217429978,0.71831219,256.33,256.03,31.35012404]
[1737217429979,31.35012404,256.15,256.03,31.35012404]
[1737217430171,35.25432404,256.13,256.01,31.35012404]
[1737217430371,35.25432404,256.13,255.85,0.58612499]
[1737217430372,31.35012404,256.06,255.94,31.35012404]
[1737217430583,21.5483,256.2,255.85,0.58612499]
[1737217430584,0.73276011,256.05,255.97,31.35012404]
[1737217430887,0.063,256.36,256.04,31.35012404]
[1737217431096,0.063,256.36,256.32,62.70024808]
[1737217431399,0.54814915,256.57,256.33,0.71336614]
[1737217431592,0.61114915,256.6,256.49,31.35012404]
[1737217431799,0.61114915,256.6,256.33,0.71336614]
[1737217432088,31.35012404,256.54,256.41,31.35012404]
[1737217432294,31.35012404,256.45,256.33,0.71336614]
[1737217432483,0.54814915,256.44,256.36,31.35012404]
[1737217432683,0.54814915,256.48,256.41,31.35012404]
[1737217432886,31.35012404,256.59,256.46,31.35012404]
[1737217433081,31.35012404,256.52,256.24,0.58494644]
[1737217433399,0.54814915,256.51,256.41,31.35012404]
[1737217433895,31.35012404,256.5,256.38,31.35012404]
[1737217434084,31.35012404,256.48,256.36,31.35012404]
[1737217434398,31.35012404,256.48,256.25,1.29869445]
[1737217434399,0.54814915,256.47,256.35,31.35012404]
[1737217434572,31.35012404,256.46,256.34,31.35012404]
[1737217434772,31.35012404,256.4,256.28,31.35012404]
[1737217434979,0.54814915,256.39,256.36,31.35012404]
[1737217435200,0.063,256.6,256.25,0.71358885]
[1737217435201,0.54814915,256.44,256.25,1.29880782]
[1737217435387,0.54814915,256.44,256.36,31.35012404]
[1737217435591,31.35012404,256.47,256.36,31.35012404]
[1737217435895,20.0,256.39,256.28,31.35012404]
[1737217436089,20.0,256.39,256.11,0.58529342]
[1737217436090,55.67515719,256.38,256.26,31.35012404]
[1737217436294,0.54814915,256.38,256.3,31.35012404]
[1737217436488,0.54814915,256.41,256.23,31.35012404]
[1737217436673,31.35012404,256.45,256.34,31.35012404]
[1737217436874,0.54814915,256.44,256.36,31.35012404]
[1737217437074,0.54814915,256.44,256.38,31.35012404]
[1737217437296,41.09232404,256.62,256.42,31.35012404]
[1737217437297,0.54814915,256.48,256.42,31.35012404]
[1737217437479,31.35012404,256.49,256.38,31.35012404]
[1737217437682,31.35012404,256.47,256.36,31.35012404]
[1737217437875,0.54814915,256.46,256.4,31.35012404]
[1737217438102,0.54814915,256.51,256.42,31.35012404]
[1737217438302,0.54814915,256.51,256.46,31.35012404]
[1737217438481,0.54814915,256.55,256.46,31.35012404]
[1737217438797,0.54814915,256.55,256.43,31.35012404]
[1737217438997,0.54814915,256.55,256.45,31.35012404]
[1737217439181,5.0872429,256.65,256.54,31.35012404]
[1737217439376,0.063,256.76,256.59,62.70024808]
[1737217439575,11.41655878,256.98,256.75,62.70024808]
[1737217439779,11.41655878,256.98,256.92,31.35012404]
[1737217439979,11.41655878,256.98,256.76,1.29617562]
[1737217440203,11.41655878,256.98,256.88,31.35012404]
[1737217440385,31.35012404,256.94,256.76,0.71217145]
[1737217440692,31.35012404,256.86,256.75,31.35012404]
[1737217440998,31.35012404,257.01,256.52,12.37425089]
[1737217441199,3.891,257.0,256.75,0.71219919]
[1737217441499,3.9537,257.03,256.75,0.71219919]
[1737217441692,3.9537,257.03,256.67,0.58440198]
[1737217441893,31.35012404,256.93,256.82,31.35012404]
[1737217442102,19.07757876,256.82,256.32,8.2602]
[1737217442408,31.35012404,256.54,256.43,31.35012404]
[1737217442576,23.776884,256.46,256.32,8.2602]
[1737217442777,11.79,256.6,256.24,0.5853391]
[1737217442991,11.79,256.6,256.19,15.599641]
[1737217443195,11.79,256.6,256.2,0.58542293]
[1737217443577,11.79,256.6,256.2,15.598821]
[1737217443775,31.35012404,256.44,256.33,31.35012404]
[1737217443979,31.35012404,256.51,256.39,31.35012404]
[1737217444394,31.35012404,256.43,256.24,0.5852133]
[1737217444598,31.35012404,256.39,256.27,31.35012404]
[1737217444783,31.35012404,256.37,256.25,31.35012404]
[1737217444983,31.35012404,256.36,256.22,12.86436204]
[1737217445183,11.79,256.48,256.28,31.35012404]
[1737217445390,11.79,256.48,256.26,31.35012404]
[1737217445391,31.35012404,256.37,256.26,31.35012404]
[1737217445590,31.35012404,256.37,256.15,8.84572034]
[1737217445591,31.35012404,256.32,256.21,31.35012404]
[1737217445789,11.79,256.48,256.15,8.84561732]
[1737217445790,31.35012404,256.34,256.23,31.35012404]
[1737217445999,31.35012404,256.3,256.19,31.35012404]
[1737217446175,31.35012404,256.2,255.92,0.58557293]
[1737217446379,31.35012404,256.1,255.98,31.35012404]
[1737217446796,31.35012404,256.04,255.92,31.35012404]
[1737217447098,31.35012404,256.02,255.9,31.35012404]
[1737217447308,31.35012404,256.04,255.92,31.35012404]
[1737217447601,31.35012404,256.02,255.9,31.35012404]
[1737217447807,31.35012404,256.02,255.85,8.2602]
[1737217447808,31.35012404,255.93,255.82,31.35012404]
[1737217447987,31.35012404,255.91,255.8,31.35012404]
[1737217448185,31.35012404,255.93,255.82,31.35012404]
[1737217448606,31.35012404,255.91,255.82,31.35012404]
[1737217448804,31.35012404,255.83,255.68,31.35012404]
[1737217449110,31.35012404,255.92,255.81,31.35012404]
[1737217449296,19.62046843,256.13,255.85,31.35012404]
[1737217449492,31.35012404,255.97,255.85,31.35012404]
[1737217449675,31.35012404,255.99,255.87,31.35012404]
[1737217449883,31.35012404,255.97,255.85,31.35012404]
[1737217450100,31.35012404,255.88,255.66,8.2602]
[1737217450299,31.35012404,255.9,255.79,31.35012404]
[1737217450490,31.35012404,255.94,255.83,31.35012404]
[1737217450691,31.35012404,255.96,255.85,31.35012404]
[1737217451003,19.53295,256.11,255.87,31.35012404]
[1737217451309,31.35012404,256.0,255.89,31.35012404]
[1737217451490,31.35012404,255.9,255.66,8.2602]
[1737217451685,31.35012404,255.9,255.79,31.35012404]
[1737217452012,31.35012404,255.94,255.83,31.35012404]
[1737217452186,31.35012404,255.98,255.87,31.35012404]
[1737217452383,19.62046843,256.13,255.87,31.35012404]
[1737217452384,31.35012404,256.04,255.93,31.35012404]
[1737217452781,31.35012404,255.98,255.87,31.35012404]
[1737217452981,31.35012404,255.95,255.85,31.35012404]
[1737217453184,31.35012404,255.97,255.85,31.35012404]
[1737217453402,31.35012404,255.95,255.82,31.35012404]
[1737217453700,31.35012404,256.0,255.89,31.35012404]
[1737217453903,31.35012404,256.02,255.89,31.35012404]
[1737217454099,31.35012404,256.02,255.91,31.35012404]
[1737217454302,31.35012404,256.04,255.93,31.35012404]
[1737217455103,31.35012404,256.06,255.95,31.35012404]
[1737217455284,31.35012404,256.06,255.96,0.03]
[1737217455601,31.35012404,256.1,256.04,0.23434]
[1737217456183,35.566884,256.09,255.61,0.5862837]
[1737217456390,31.35012404,255.99,255.89,31.35012404]
[1737217456590,31.35012404,256.02,255.91,31.35012404]
[1737217456908,31.35012404,255.98,255.88,31.35012404]
[1737217457106,31.35012404,256.02,255.9,31.35012404]
[1737217457287,13.6612,256.2,255.96,31.35012404]
[1737217457494,31.35012404,256.07,255.96,31.35012404]
[1737217458087,31.35012404,256.07,255.85,0.58620561]
[1737217458088,31.35012404,256.08,255.97,31.35012404]